bitfinex-derivatives/quotes_ETHF0:USTF0_20250214
["timestamp","ask_amount","ask_price","bid_price","bid_amount"]
[1739545012275,3.94223,2722.8,2722.5,0.00550317]
[1739545012780,3.2078,2722.8,2722.5,0.00550317]
[1739545013072,4.32147652,2722.9,2722.6,0.73445]
[1739545013073,0.7344,2722.9,2722.6,0.73445]
[1739545013273,0.00550317,2723.0,2722.5,0.00550317]
[1739545013470,0.73443,2722.8,2722.5,0.00550317]
[1739545013677,0.00550317,2723.0,2722.5,0.00550317]
[1739545014185,0.73445,2722.8,2722.5,0.73998317]
[1739545014372,0.73443,2722.8,2722.5,0.00550317]
[1739545014673,0.73445,2722.7,2722.5,0.73999317]
[1739545015073,0.73447,2722.7,2722.5,0.74000317]
[1739545015374,0.00550317,2723.0,2722.5,0.00550317]
[1739545015583,0.73448,2722.6,2722.5,0.00550317]
[1739545017079,0.73462,2722.1,2721.4,1.837]
[1739545017284,0.73462,2722.1,2721.8,0.73467]
[1739545017479,7.52927652,2722.4,2721.8,0.73467]
[1739545017680,7.52927652,2722.4,2721.7,3.2078]
[1739545017980,7.52927652,2722.4,2721.8,0.73467]
[1739545017981,0.73464,2722.0,2721.8,0.73467]
[1739545018276,7.52927652,2722.4,2721.8,1.83674]
[1739545018476,0.73451,2722.5,2722.3,0.73454]
[1739545018677,0.73449,2722.6,2722.4,0.73451]
[1739545018976,3.94226,2722.7,2722.5,0.73448]
[1739545019281,3.21330317,2723.0,2722.2,1.83647]
[1739545019481,0.73449,2722.6,2722.3,3.2078]
[1739545019683,0.73453,2722.4,2722.3,3.94235]
[1739545019974,0.00550317,2723.0,2722.9,0.7344]
[1739545021778,3.2078,2724.3,2722.9,6.0]
[1739545021972,0.73406,2724.2,2723.9,0.73412]
[1739545022277,0.73405,2724.2,2723.7,3.2078]
[1739545022477,0.73411,2724.0,2723.6,0.73418]
[1739545022678,0.73409,2724.1,2723.7,0.73416]
[1739545022985,0.00550317,2724.1,2723.5,0.00550317]
[1739545023177,0.73421,2723.6,2723.5,0.00550317]
[1739545023487,5.05568652,2723.6,2723.5,0.00550317]
[1739545023682,0.73433,2723.2,2722.8,0.73441]
[1739545023888,3.2078,2723.3,2722.6,3.2078]
[1739545024182,3.2078,2723.0,2722.2,2.251]
[1739545024381,0.73447,2722.7,2722.2,2.251]
[1739545024575,3.2078,2723.0,2722.2,2.251]
[1739545024783,0.00550317,2722.7,2722.2,2.251]
[1739545025188,0.00550317,2722.7,2722.4,0.73451]
[1739545025385,0.73996317,2722.7,2722.3,0.73455]
[1739545025589,0.73996317,2722.7,2722.3,0.73454]
[1739545025790,0.73996317,2722.7,2722.4,0.73453]
[1739545025982,0.00550317,2722.7,2722.6,0.73448]
[1739545026290,0.00550317,2722.7,2722.1,1.3158]
[1739545026493,0.00550317,2722.7,2722.5,0.7345]
[1739545026783,0.00550317,2722.7,2722.1,1.3158]
[1739545027092,0.73458,2722.3,2721.7,3.2078]
[1739545027287,0.73455,2722.4,2722.0,0.73462]
[1739545027589,0.73457,2722.3,2722.0,0.73463]
[1739545027787,0.00550317,2722.7,2722.0,3.2078]
[1739545028392,0.00550317,2722.7,2722.2,0.73457]
[1739545028578,0.73456,2722.3,2722.0,3.94243]
[1739545028780,3.2078,2722.5,2722.0,0.73463]
[1739545028985,0.73456,2722.4,2721.6,4.4209]
[1739545029184,0.73455,2722.4,2722.1,0.7346]
[1739545029685,0.73455,2722.4,2721.6,4.4209]
[1739545029686,0.73457,2722.3,2722.0,0.73463]
[1739545029986,3.2078,2722.2,2721.7,0.47334928]
[1739545030380,3.2078,2722.2,2721.6,3.2078]
[1739545030780,3.2078,2722.2,2721.3,4.4671]
[1739545030986,0.73465,2722.0,2721.7,0.73469]
[1739545031183,0.73472,2721.7,2721.4,1.20823607]
[1739545031483,0.73477,2721.5,2721.4,0.47344607]
[1739545031889,0.73485,2721.3,2720.9,0.73493]
[1739545032187,2.218,2721.7,2720.1,11.29877375]
[1739545032188,0.73498,2720.8,2720.1,3.2078]
[1739545032394,3.2078,2720.7,2720.1,3.2078]
[1739545032589,3.2078,2720.7,2720.3,0.73508]
[1739545032785,3.21331379,2720.7,2720.2,0.47349365]
[1739545032986,0.73503,2720.6,2720.2,0.47349365]
[1739545033186,3.21331379,2720.7,2720.1,3.2078]
[1739545033386,0.73503,2720.6,2720.1,3.2078]
[1739545033790,3.21331379,2720.7,2720.1,3.2078]
[1739545033990,0.73504,2720.5,2720.1,3.2078]
[1739545034290,3.21331379,2720.7,2720.1,3.2078]
[1739545034488,4.32147652,2720.4,2720.1,3.2078]
[1739545034698,4.32147652,2720.4,2719.6,1.2987]
[1739545034699,7.52927652,2720.4,2719.6,4.5065]
[1739545034886,7.52927652,2720.4,2719.6,3.2078]
[1739545035088,9.74427652,2720.4,2719.6,3.2078]
[1739545035498,10.47936652,2720.4,2719.6,3.2078]
[1739545035798,0.73514,2720.2,2719.7,0.73525]
[1739545036198,0.7351,2720.3,2719.8,0.73523]
[1739545036400,0.73514,2720.2,2719.7,0.73524]
[1739545036604,9.74427652,2720.4,2719.6,3.2078]
[1739545036899,0.73516,2720.1,2719.6,3.94307]
[1739545037094,9.74427652,2720.4,2719.6,3.2078]
[1739545037295,0.73519,2720.0,2719.6,3.2078]
[1739545037602,0.73516,2720.1,2719.6,3.94307]
[1739545037797,0.73518,2720.0,2719.6,3.94307]
[1739545037989,0.73515,2720.2,2719.7,0.73524]
[1739545038299,9.74427652,2720.4,2719.6,3.2078]
[1739545038497,0.73518,2720.0,2719.6,3.94307]
[1739545038999,0.73517,2720.1,2719.7,0.73525]
[1739545039191,9.74427652,2720.4,2719.6,3.2078]
[1739545039499,3.2078,2720.1,2719.9,0.7352]
[1739545039700,3.94296,2720.1,2719.7,0.73524]
[1739545040009,0.73519,2720.0,2719.7,0.73524]
[1739545040302,0.00551379,2720.7,2720.0,1.83795]
[1739545040596,0.00551379,2720.7,2720.6,0.73502]
[1739545040803,0.00551379,2720.7,2720.5,0.73504]
[1739545041096,0.73508,2720.4,2720.1,0.73513]
[1739545041398,0.73509,2720.4,2720.0,3.2078]
[1739545041600,3.21331379,2720.7,2720.0,3.2078]
[1739545041787,3.2078,2720.4,2719.7,3.2078]
[1739545041988,0.73514,2720.2,2719.9,0.73518]
[1739545042196,0.73514,2720.2,2719.7,3.2078]
[1739545042400,3.2078,2720.4,2719.7,5.04596]
[1739545042602,3.94831379,2720.7,2720.5,0.73503]
[1739545043099,3.21331379,2720.7,2720.6,0.73502]
[1739545043294,0.00551379,2720.7,2720.6,0.73502]
[1739545043997,0.00551379,2720.7,2720.1,3.2078]
[1739545044190,0.00551379,2720.7,2719.9,1.2826]
[1739545044393,0.73507,2720.5,2720.3,0.73509]
[1739545044599,0.00551379,2720.7,2720.6,0.73502]
[1739545045899,0.00551379,2720.7,2720.1,1.83788]
[1739545046403,0.74052379,2720.7,2720.5,0.73503]
[1739545046593,0.74051379,2720.7,2720.1,1.83788]
[1739545046793,0.73503,2720.6,2720.5,0.73504]
[1739545047304,0.00551379,2720.7,2720.1,1.83788]
[1739545047504,0.00551379,2720.7,2720.6,0.73502]
[1739545048500,0.73502,2720.6,2720.4,0.73505]
[1739545048696,0.73506,2720.5,2720.3,0.73508]
[1739545048899,0.73509,2720.4,2720.2,0.73511]
[1739545049095,7.52927652,2720.4,2719.7,3.2078]
[1739545049398,0.73511,2720.3,2720.1,0.73515]
[1739545049594,7.52927652,2720.4,2720.0,0.73517]
[1739545049795,7.52927652,2720.4,2719.7,3.2078]
[1739545049995,0.73513,2720.2,2720.0,0.73518]
[1739545050200,0.73511,2720.3,2720.0,0.73518]
[1739545050501,7.52927652,2720.4,2719.5,1.83823]
[1739545050706,4.32147652,2720.4,2719.8,1.83809]
[1739545051000,4.32147652,2720.4,2719.7,5.04596]
[1739545051312,3.2078,2720.2,2720.1,0.73513]
[1739545051491,3.2078,2720.2,2719.4,3.67926831]
[1739545051692,3.2078,2720.2,2719.4,5.04612]
[1739545051893,0.73518,2720.0,2719.8,0.73521]
[1739545052096,0.73518,2720.0,2719.4,5.04612]
[1739545052097,0.73518,2720.0,2719.9,0.73521]
[1739545052297,0.73516,2720.1,2719.5,1.83823]
[1739545052499,3.2078,2720.2,2719.4,5.04612]
[1739545052899,3.2078,2720.2,2719.8,0.73522]
[1739545052900,0.73518,2720.1,2719.8,0.73522]
[1739545053096,0.7352,2720.0,2719.7,0.73525]
[1739545053307,3.94293,2720.2,2719.5,1.83829]
[1739545053498,3.94294,2720.2,2719.5,1.83829]
[1739545053693,7.9409507,2720.2,2720.0,0.73517]
[1739545054002,0.73519,2720.0,2719.9,0.7352]
[1739545054202,3.2078,2720.2,2719.5,1.83829]
[1739545054408,3.2078,2720.2,2719.4,3.2078]
[1739545054704,7.2058107,2720.2,2719.8,0.73523]
[1739545054900,7.2058107,2720.2,2719.5,0.47308927]
[1739545055206,0.73529,2719.6,2719.5,0.47308927]
[1739545055406,0.73529,2719.6,2719.5,1.20839927]
[1739545055610,0.73529,2719.6,2719.4,3.2078]
[1739545055611,3.9980107,2719.6,2719.4,3.2078]
[1739545055814,1.83829,2719.5,2718.7,3.2078]
[1739545056105,0.73548,2719.0,2718.4,3.2078]
[1739545056309,3.94321,2719.2,2718.8,0.47399923]
[1739545056701,0.00551379,2719.4,2719.3,0.73537]
[1739545057602,3.2078,2719.8,2719.7,0.73526]
[1739545058606,3.94305,2719.8,2719.6,0.73528]
[1739545058809,3.2078,2719.8,2719.7,0.73526]
[1739545059312,3.2078,2719.8,2719.5,0.00551379]
[1739545059602,3.20247253,2719.8,2719.7,0.73526]
[1739545060410,3.93770253,2719.8,2719.7,0.47513942]
[1739545061305,3.20247253,2719.8,2719.7,0.73526]
[1739545061605,0.00551379,2720.0,2719.9,0.73521]
[1739545061911,0.00551379,2720.0,2719.6,3.2078]
[1739545062312,0.00551379,2720.0,2719.7,0.47636141]
[1739545062505,0.00551379,2720.0,2719.9,0.73521]
[1739545062811,0.00551379,2720.0,2719.9,1.21157141]
[1739545063310,0.74069379,2720.0,2719.9,0.47636141]
[1739545064509,0.73525,2719.8,2719.5,0.74081379]
[1739545064708,0.73527,2719.7,2719.5,0.00551379]
[1739545064914,0.73527,2719.7,2719.6,0.47670949]
[1739545065115,7.9410807,2719.7,2719.6,0.47670949]
[1739545065309,13.9410807,2719.7,2719.6,0.47670949]
[1739545065716,13.9410807,2719.7,2719.5,0.00551379]
[1739545065717,0.73529,2719.6,2719.5,0.00551379]
[1739545065912,2.85629,2719.6,2719.5,0.00551379]
[1739545067119,8.121,2719.6,2718.5,1.2135]
[1739545067410,3.9980107,2719.0,2718.6,0.47653047]
[1739545067613,3.9980107,2719.0,2718.8,0.73549]
[1739545067816,3.9980107,2719.0,2718.6,0.47653047]
[1739545067817,3.9980107,2719.0,2718.7,0.73551]
[1739545068011,3.2078,2719.1,2718.6,0.47653047]
[1739545068210,3.2078,2719.1,2719.0,0.73545]
[1739545068721,3.2078,2719.1,2719.0,1.21198047]
[1739545068923,3.2078,2719.5,2719.0,0.47653047]
[1739545069219,0.00551379,2720.0,2719.3,3.2078]
[1739545069220,3.2078,2719.8,2719.3,3.2078]
[1739545069415,3.2078,2719.8,2719.7,0.73526]
[1739545070016,0.00551379,2720.0,2719.7,0.47653047]
[1739545070311,0.00551379,2720.0,2719.8,1.21175047]
[1739545070510,0.00551379,2720.0,2719.9,0.73521]
[1739545070705,0.00551379,2720.0,2719.8,1.21174047]
[1739545070912,0.00551379,2720.0,2719.8,0.73521]
[1739545071108,0.00551379,2720.0,2719.9,0.73521]
[1739545071419,0.00551379,2720.0,2719.8,0.73521]
[1739545071919,0.00551379,2720.0,2719.8,0.73523]
[1739545072219,0.00551379,2720.0,2719.9,0.73521]
[1739545072420,0.00551379,2720.0,2719.9,3.94301]
[1739545072720,0.00551379,2720.0,2719.4,5.3198]
[1739545072918,0.00551379,2720.0,2719.9,0.73521]
[1739545073515,0.00551379,2720.0,2719.9,1.21114907]
[1739545074813,3.2078,2720.6,2719.9,6.47593907]
[1739545075018,0.73506,2720.5,2720.4,0.73507]
[1739545075209,0.73506,2720.5,2720.1,3.2078]
[1739545075415,3.2078,2720.6,2720.3,0.73509]
[1739545075416,0.73507,2720.4,2720.3,0.73509]
[1739545076023,3.94834379,2720.6,2720.4,0.73506]
[1739545076319,3.21331379,2720.6,2720.3,0.47599922]
[1739545076519,0.00551379,2720.6,2720.5,0.73504]
[1739545076720,0.00551379,2720.6,2720.4,3.2078]
[1739545076721,0.73504,2720.5,2720.4,4.41885922]
[1739545077017,4.7330507,2720.5,2720.4,0.47599922]
[1739545077618,4.7330507,2720.5,2720.3,0.73509]
[1739545078020,3.9980107,2720.5,2720.4,0.73507]
[1739545078310,3.9980107,2720.5,2720.1,3.2078]
[1739545078512,4.7330707,2720.5,2720.3,0.73509]
[1739545079015,4.7330707,2720.5,2720.1,3.2078]
[1739545079016,3.9980107,2720.5,2720.1,3.2078]
[1739545079223,3.9980107,2720.5,2720.4,0.73507]
[1739545079422,4.7330707,2720.5,2720.3,0.73509]
[1739545079624,3.9980107,2720.5,2720.1,3.2078]
[1739545079824,3.9980107,2720.5,2720.3,0.73508]
[1739545080121,3.9980107,2720.5,2720.2,0.47625688]
[1739545080627,0.00551379,2720.6,2720.5,0.73504]
[1739545081028,0.00551379,2720.6,2720.5,1.21116556]
[1739545082428,0.00551379,2720.6,2720.5,0.73504]
[1739545083526,0.00551379,2720.6,2720.5,1.21081756]
[1739545084032,0.00551379,2720.6,2720.5,3.94284]
[1739545084331,3.94265,2721.3,2720.7,1.83743]
[1739545084641,0.73494,2720.9,2720.8,0.73495]
[1739545084927,3.9980107,2721.1,2720.9,0.73494]
[1739545084928,0.73493,2721.0,2720.9,0.73494]
[1739545085124,4.0123007,2721.6,2720.8,3.2078]
[1739545085125,3.22209,2721.6,2720.8,3.2078]
[1739545085319,3.22209,2721.6,2721.5,0.73477]
[1739545085320,0.01429,2721.6,2721.5,0.73477]
[1739545086524,0.01429,2721.6,2721.5,3.94257]
[1739545087650,0.01429,2721.6,2721.5,0.73477]
[1739545090652,0.01429,2721.6,2721.3,0.00551379]
[1739545090851,3.9980107,2721.4,2721.3,0.74034379]
[1739545091263,3.9980107,2721.4,2721.3,0.00551379]
[1739545091449,4.7328107,2721.4,2721.3,0.00551379]
[1739545091750,0.7349,2721.1,2720.5,0.73504]
[1739545091953,7.2058107,2721.5,2721.0,0.73491]
[1739545092156,0.01429,2721.6,2721.5,0.73477]
[1739545092360,3.2078,2722.4,2722.3,0.73456]
[1739545092937,3.9980107,2722.7,2722.6,0.73448]
[1739545093235,5.2659107,2723.0,2722.9,0.7344]
[1739545093934,5.2659107,2723.0,2722.6,3.2078]
[1739545094130,3.9980107,2722.7,2722.6,3.94228]
[1739545094333,3.9980107,2722.7,2722.6,0.73448]
[1739545095338,5.2659107,2723.0,2722.9,0.7344]
[1739545095641,5.2659107,2723.0,2722.5,3.2078]
[1739545095842,3.9980107,2722.7,2722.4,0.00551379]
[1739545096038,7.2058107,2722.7,2722.4,0.00551379]
[1739545096340,9.2318107,2722.7,2721.7,3.2078]
[1739545096540,3.9980107,2722.1,2721.8,0.73468]
[1739545097441,3.9980107,2722.1,2721.7,0.00551379]
[1739545097642,3.9980107,2722.1,2722.0,0.73464]
[1739545097938,1.3218,2722.2,2722.1,0.73461]
[1739545098243,3.9980107,2722.4,2722.3,0.73456]
[1739545098542,3.9980107,2722.4,2722.1,0.73459]
[1739545098841,3.9980107,2722.4,2721.7,3.21331379]
[1739545099239,2.02,2722.6,2721.7,3.21331379]
[1739545099542,2.02,2722.6,2722.3,0.73455]
[1739545099744,2.02,2722.6,2721.9,3.2078]
[1739545099937,2.02,2722.6,2722.3,0.73454]
[1739545100445,2.75449,2722.6,2721.7,2.02351379]
[1739545100643,2.75449,2722.6,2722.2,0.73457]
[1739545100944,2.75449,2722.6,2721.9,3.2078]
[1739545101245,2.02,2722.6,2721.9,3.2078]
[1739545101941,2.02,2722.6,2722.0,1.8366]
[1739545102144,1.2376,2722.9,2721.9,3.2078]
[1739545102345,1.2376,2722.9,2722.8,0.73442]
[1739545102644,0.00551379,2723.2,2723.1,0.73434]
[1739545103549,0.73984379,2723.2,2722.9,0.73439]
[1739545103842,0.73984379,2723.2,2722.5,3.2078]
[1739545103843,0.00551379,2723.2,2722.5,3.2078]
[1739545104148,0.73437,2723.1,2722.8,0.73442]
[1739545104340,0.73437,2723.0,2722.5,3.2078]
[1739545104540,0.00551379,2723.2,2722.5,3.2078]
[1739545104741,3.9980107,2723.0,2722.2,7.04526]
[1739545104941,4.7323907,2723.0,2722.7,0.73443]
[1739545105138,7.2058107,2723.0,2722.3,0.73454]
[1739545105344,3.9980107,2722.5,2721.9,1.2781]
[1739545105551,4.7325307,2722.5,2722.2,0.73457]
[1739545105751,3.9980107,2722.5,2721.9,1.2781]
[1739545105945,3.9980107,2722.5,2722.0,1.8366]
[1739545106145,0.73449,2722.6,2722.3,0.73453]
[1739545106345,0.73448,2722.6,2722.0,5.0444]
[1739545106551,0.73448,2722.6,2722.4,0.73453]
[1739545106851,0.73452,2722.5,2722.0,3.2078]
[1739545107050,0.73452,2722.5,2722.2,0.73456]
[1739545107463,0.73453,2722.4,2722.2,0.73456]
[1739545107755,4.7325207,2722.5,2722.2,0.73456]
[1739545107944,3.9980107,2722.5,2722.0,3.2078]
[1739545108145,3.9980107,2722.5,2721.9,1.2781]
[1739545108146,0.73454,2722.4,2722.1,0.7346]
[1739545108340,4.7325407,2722.5,2722.2,0.73457]
[1739545108545,0.73454,2722.4,2722.2,0.73457]
[1739545108947,0.73461,2722.2,2721.9,0.73465]
[1739545109144,0.73461,2722.2,2721.7,3.21331379]
[1739545109145,0.73465,2722.0,2721.8,0.73468]
[1739545109548,3.9980107,2722.2,2721.7,0.00551379]
[1739545109751,0.73464,2722.0,2721.8,0.73468]
[1739545109949,0.73468,2721.9,2721.7,0.00551379]
[1739545110351,1.3543,2722.1,2721.7,0.00551379]
[1739545110765,3.9980107,2721.9,2721.7,0.00551379]
[1739545111054,0.73469,2721.8,2721.7,0.00551379]
[1739545116957,7.2058107,2721.9,2720.9,3.2078]
[1739545117255,0.73486,2721.2,2721.0,0.73491]
[1739545117452,3.9980107,2721.4,2720.9,3.2078]
[1739545117652,0.73486,2721.2,2721.0,0.73489]
[1739545117857,0.7349,2721.1,2720.9,3.94272]
[1739545118056,0.7349,2721.1,2721.0,0.73491]
[1739545118262,0.74035379,2721.3,2720.9,3.2078]
[1739545118554,0.73488,2721.2,2721.1,0.73488]
[1739545119058,0.00551379,2721.3,2721.0,0.7349]
[1739545119257,0.73488,2721.2,2721.0,0.7349]
[1739545119558,0.00551379,2721.3,2720.9,0.73492]
[1739545119854,0.00551379,2721.3,2720.8,3.2078]
[1739545120059,0.00551379,2721.3,2721.2,0.73485]
[1739545120656,0.73487,2721.2,2720.8,3.2078]
[1739545120861,0.73487,2721.2,2721.1,0.73488]
[1739545121158,0.00551379,2721.3,2720.8,3.2078]
[1739545121459,0.73494,2720.9,2720.8,0.73496]
[1739545121851,0.00551379,2721.3,2720.7,2.6596]
[1739545122061,0.73493,2721.0,2720.8,0.47551511]
[1739545122365,1.84260379,2721.3,2720.8,0.47551511]
[1739545122655,1.83714,2721.2,2720.8,0.47551511]
[1739545122861,1.84260379,2721.3,2721.0,0.73491]
[1739545123060,0.7349,2721.1,2721.0,0.73491]
[1739545123555,0.73486,2721.2,2721.1,0.73486]
[1739545123755,0.73491,2721.1,2720.8,3.2078]
[1739545123952,0.73491,2721.1,2721.0,0.73491]
[1739545124160,0.73492,2721.0,2720.9,0.73492]
[1739545124754,0.00551379,2721.3,2720.8,3.2078]
[1739545125060,0.7349,2721.1,2721.0,0.7349]
[1739545125763,0.73491,2721.0,2720.9,1.2099929]
[1739545125955,0.00551379,2721.3,2720.8,3.2078]
[1739545126156,0.73494,2720.9,2720.8,3.2078]
[1739545126760,0.73501,2720.7,2720.6,0.73501]
[1739545126960,0.73498,2720.8,2720.7,0.73498]
[1739545127156,1.83729,2721.0,2720.6,0.47490774]
[1739545127461,0.73499,2720.7,2720.6,0.47490774]
[1739545128156,0.73508,2720.4,2720.3,0.7351]
[1739545128361,0.7351,2720.3,2720.2,2.5743]
[1739545128558,3.9980107,2720.5,2720.2,0.73512]
[1739545128760,0.73517,2720.1,2719.9,3.2078]
[1739545128953,3.9980107,2720.1,2719.5,3.2078]
[1739545129161,4.7331807,2720.1,2719.9,0.73519]
[1739545129354,3.9980107,2720.4,2719.8,3.2078]
[1739545129861,1.926,2720.5,2719.8,3.2078]
[1739545130059,0.73514,2720.2,2720.0,0.73515]
[1739545130263,4.7330807,2720.4,2719.8,5.04585]
[1739545130465,0.73502,2720.6,2720.1,3.2078]
[1739545130762,0.735,2720.7,2720.2,1.3501]
[1739545130961,3.9980107,2721.0,2720.4,3.2078]
[1739545131157,3.9980107,2721.0,2720.4,0.73507]
[1739545131362,3.9980107,2720.7,2720.2,2.08521]
[1739545131558,3.9980107,2720.7,2720.2,1.3501]
[1739545131766,3.9980107,2720.7,2720.2,2.08521]
[1739545131767,0.73509,2720.4,2720.2,2.08521]
[1739545132360,0.73503,2720.6,2720.2,1.3501]
[1739545132566,0.73507,2720.4,2720.2,2.0852]
[1739545132765,3.9980107,2720.7,2720.2,1.3501]
[1739545132970,0.73503,2720.6,2720.2,1.3501]
[1739545133163,0.73503,2720.6,2720.4,0.73505]
[1739545133556,3.9980107,2720.7,2720.2,1.3501]
[1739545133557,0.73505,2720.5,2720.3,0.73508]
[1739545133963,3.08082,2721.1,2720.3,0.73508]
[1739545133964,3.2078,2721.5,2720.4,3.2078]
[1739545134166,0.73486,2721.2,2721.0,0.7349]
[1739545134369,7.2058107,2721.6,2721.0,0.7349]
[1739545134664,0.73487,2721.2,2721.0,0.73491]
[1739545134866,4.00352449,2721.3,2720.8,3.2078]
[1739545135361,4.00352449,2721.3,2721.0,0.73488]
[1739545135664,4.00352449,2721.3,2720.9,1.2584]
[1739545135870,0.73488,2721.2,2720.9,1.2584]
[1739545136171,0.73487,2721.2,2721.0,0.73491]
[1739545136471,4.00352449,2721.3,2720.9,1.2584]
[1739545136472,0.7349,2721.1,2720.9,1.99332]
[1739545136769,0.73487,2721.2,2721.0,0.73489]
[1739545136956,0.73487,2721.2,2720.9,1.2584]
[1739545137156,4.00352449,2721.3,2721.0,0.7349]
[1739545137560,0.73488,2721.1,2720.9,1.99331]
[1739545137761,4.00352449,2721.3,2720.9,1.99331]
[1739545137762,7.21132449,2721.3,2720.9,1.99331]
[1739545137961,0.73488,2721.1,2720.9,1.2584]
[1739545138162,0.73487,2721.2,2720.9,1.99333]
[1739545138575,7.21132449,2721.3,2720.9,1.99333]
[1739545138774,0.73488,2721.1,2720.9,1.99333]
[1739545140063,0.73487,2721.2,2721.0,0.73491]
[1739545140269,0.73487,2721.2,2721.0,0.7349]
[1739545140863,7.21132449,2721.3,2720.9,1.2584]
[1739545140864,0.73489,2721.1,2720.9,1.2584]
[1739545141065,0.73487,2721.2,2721.0,0.7349]
[1739545141363,0.73487,2721.2,2721.1,0.73488]
[1739545141767,0.73487,2721.2,2721.0,0.73489]
[1739545142262,7.21132449,2721.3,2720.9,1.2584]
[1739545142465,0.73486,2721.2,2721.0,0.7349]
[1739545142673,0.73488,2721.1,2721.0,0.7349]
[1739545143769,0.73488,2721.1,2720.9,1.2584]
[1739545143968,0.73488,2721.1,2720.9,1.99331]
[1739545144376,0.73486,2721.2,2720.9,1.2584]
[1739545144563,0.73489,2721.1,2721.0,0.7349]
[1739545144763,0.73487,2721.2,2720.9,1.2584]
[1739545144972,0.73487,2721.2,2721.1,0.73488]
[1739545145172,0.00551379,2721.3,2721.2,0.73485]
[1739545145574,0.74035379,2721.3,2721.2,0.73485]
[1739545145770,0.00551379,2721.3,2721.2,0.73485]
[1739545146678,1.83672,2721.9,2721.2,0.73485]
[1739545146679,3.18722789,2722.0,2721.4,1.83698]
[1739545147078,3.18722789,2722.0,2721.3,3.2078]
[1739545147373,3.18722789,2722.0,2721.2,2.59421903]
[1739545147374,3.18722789,2722.0,2721.9,0.73467]
[1739545147876,3.18722789,2722.0,2721.7,0.00551379]
[1739545147877,3.92186789,2722.0,2721.7,0.00551379]
[1739545148080,0.73467,2721.9,2721.8,0.73468]
[1739545148473,0.74010379,2722.2,2721.7,0.00551379]
[1739545148669,0.74011379,2722.2,2721.9,3.2078]
[1739545148878,0.00551379,2722.2,2721.9,3.2078]
[1739545149074,0.73469,2721.8,2721.7,0.00551379]
[1739545149777,4.72853934,2721.8,2721.7,0.00551379]
[1739545151975,2.7183,2722.1,2721.7,0.00551379]
[1739545152182,0.73465,2722.0,2721.7,0.74021379]
[1739545152477,0.73468,2721.9,2721.8,0.47520556]
[1739545152681,0.73466,2722.0,2721.8,0.47520556]
[1739545153070,2.7183,2722.1,2721.8,0.73467]
[1739545153071,3.45292,2722.1,2721.8,0.73467]
[1739545153276,0.00551379,2722.2,2721.7,0.00551379]
[1739545153471,0.73464,2722.0,2721.8,0.73468]
[1739545153678,0.73463,2722.1,2721.8,0.73468]
[1739545154081,0.00551379,2722.2,2721.7,0.00551379]
[1739545154280,0.73463,2722.1,2721.9,0.73466]
[1739545154477,0.00551379,2722.2,2721.9,0.73466]
[1739545154878,0.74012379,2722.2,2722.0,0.73463]
[1739545155077,0.73461,2722.1,2722.0,0.73463]
[1739545155376,0.00551379,2722.2,2721.9,3.2078]
[1739545155577,0.73464,2722.0,2721.9,3.2078]
[1739545157585,0.00551379,2722.2,2721.7,0.00551379]
[1739545157885,0.73469,2721.8,2721.7,0.00551379]
[1739545158473,4.72853934,2721.8,2721.7,0.00551379]
[1739545158678,1.83688,2721.6,2720.8,5.7411]
[1739545158883,0.73489,2721.1,2720.9,0.73493]
[1739545159385,3.99384934,2721.3,2720.8,5.7411]
[1739545159681,3.99384934,2721.3,2720.8,3.2078]
[1739545159981,3.2078,2721.5,2720.8,3.2078]
[1739545160188,0.7349,2721.1,2720.9,0.73492]
[1739545161089,0.73486,2721.2,2721.0,0.73489]
[1739545161282,0.73488,2721.1,2721.0,0.73489]
[1739545161786,3.2078,2721.5,2721.0,0.73489]
[1739545161787,0.73486,2721.2,2721.0,0.73489]
[1739545162381,3.2078,2721.5,2720.8,3.2078]
[1739545162884,5.04478,2721.5,2720.9,0.73493]
[1739545163089,5.04478,2721.5,2720.9,0.73492]
[1739545163285,0.7349,2721.1,2720.9,0.73492]
[1739545163785,0.73487,2721.2,2721.0,0.73489]
[1739545163988,0.73487,2721.2,2720.8,3.2078]
[1739545164186,3.2078,2721.5,2721.1,0.73486]
[1739545164383,0.73485,2721.2,2721.1,0.73486]
[1739545164781,1.3325,2721.7,2721.1,3.2078]
[1739545164990,0.73478,2721.5,2721.4,0.73479]
[1739545165283,1.3325,2721.7,2721.1,3.2078]
[1739545165489,0.73481,2721.4,2721.3,0.73482]
[1739545165884,0.73481,2721.4,2721.3,1.21016217]
[1739545166079,0.73481,2721.4,2721.3,0.47534217]
[1739545166782,0.73481,2721.4,2721.3,0.73483]
[1739545166977,0.73481,2721.4,2721.1,3.2078]
[1739545167186,5.83073934,2721.6,2720.8,3.2078]
[1739545167483,0.73494,2720.9,2720.8,3.94275]
[1739545167684,0.73494,2720.9,2720.8,1.21065819]
[1739545168386,0.73494,2720.9,2720.8,0.47570819]
[1739545169089,0.73507,2720.4,2720.2,3.94291]
[1739545169294,4.72887934,2720.6,2720.4,0.73505]
[1739545169482,0.74054379,2720.6,2720.4,0.73505]
[1739545170084,0.00551379,2720.6,2720.5,0.73504]
[1739545170590,0.00551379,2720.6,2720.5,3.2078]
[1739545170807,0.00551379,2720.6,2720.5,3.94284]
[1739545171286,0.00551379,2720.6,2720.5,5.81884]
[1739545174893,0.00551379,2720.6,2720.5,11.81884]
[1739545175496,0.73479,2721.5,2721.4,0.73477]
[1739545175797,0.73483,2721.3,2721.2,3.2078]
[1739545175998,0.73492,2721.0,2720.9,0.73492]
[1739545176188,3.18868952,2721.3,2720.7,4.5028]
[1739545176389,3.92361952,2721.0,2720.9,0.73493]
[1739545176689,0.73494,2720.9,2720.8,0.73494]
[1739545176890,3.18868952,2721.0,2720.7,3.21331379]
[1739545177090,0.73492,2721.0,2720.9,0.73491]
[1739545178486,0.73496,2720.9,2720.8,0.73494]
[1739545178991,1.27,2721.1,2720.7,3.21331379]
[1739545178992,3.18868952,2721.0,2720.7,3.21331379]